fUSD/lending_fUSD_20260323
["ID","MTS","AMOUNT","RATE_DAILY","PERIOD"]
[408779654,1774241434467,-821.96,0.00012173,2]
[408779655,1774241434476,-578.20924308,0.00012198,2]
[408779656,1774241434485,-197.88766773,0.00012198,2]
[408779657,1774241434494,-8882.6885148,0.00012198,2]
[408779658,1774241434504,-500.0,0.00012198,2]
[408779659,1774241434513,-619.08200424,0.00012198,2]
[408779660,1774241434523,-670.58624095,0.00012198,2]
[408779661,1774241434532,-500.0,0.00012198,2]
[408779662,1774241434541,-154.99331594,0.00012198,2]
[408779663,1774241434550,-1378.85561473,0.00012198,2]
[408779664,1774241434559,-500.0,0.00012198,2]
[408779665,1774241434569,-174.61919141,0.00012198,2]
[408779666,1774241434578,-500.0,0.00012198,2]
[408779667,1774241434588,-500.0,0.00012198,2]
[408779668,1774241434597,-500.0,0.00012198,2]
[408779669,1774241434607,-500.0,0.00012198,2]
[408779670,1774241434616,-266.84826246,0.00012198,2]
[408779671,1774241434625,-500.0,0.00012198,2]
[408779672,1774241434634,-500.0,0.00012198,2]
[408779673,1774241434643,-500.0,0.00012198,2]
[408779674,1774241434652,-650.41533099,0.00012198,2]
[408779675,1774241434661,-500.0,0.00012198,2]
[408779676,1774241434670,-151.0,0.00012198,2]
[408779677,1774241434679,-500.0,0.00012198,2]
[408779678,1774241434689,-500.0,0.00012198,2]
[408779679,1774241434698,-500.0,0.00012198,2]
[408779680,1774241434708,-500.0,0.00012198,2]
[408779681,1774241434717,-198.2436242,0.00012198,2]
[408779682,1774241434726,-1680.0,0.00012237,2]
[408779683,1774241434735,-250.0,0.00012238,2]
[408779684,1774241434744,-166.66,0.00012247,2]
[408779685,1774241434754,-500.0,0.00012253,2]
[408779686,1774241434763,-151.0,0.00012253,2]
[408779687,1774241434773,-10517.54344193,0.00012258,2]
[408779688,1774241434782,-500.0,0.00012274,2]
[408779689,1774241434795,-715.35486,0.0001228,2]
[408779690,1774241434804,-715.35486,0.0001228,2]
[408779691,1774241434813,-715.35487,0.0001228,2]
[408779692,1774241434822,-715.35486,0.0001228,2]
[408779693,1774241434832,-715.35487,0.0001228,2]
[408779694,1774241434841,-715.35486,0.0001228,2]
[408779695,1774241434851,-48202.84326448,0.0001229,2]
[408779696,1774241434860,-151.0,0.0001229,2]
[408779697,1774241434875,-151.0,0.0001229,2]
[408779698,1774241434884,-500.0,0.00012308,2]
[408779699,1774241434894,-200.0,0.00012309,2]
[408779700,1774241434903,-321.0301234,0.00012309,2]
[408779701,1774241434913,-3078.6912337,0.00012309,2]
[408779702,1774241434925,-3055.7528665,0.00012309,2]
[408779703,1774241434946,-13797.736854,0.00012309,2]
[408779704,1774241434964,-151.0,0.00012323,2]
[408779705,1774241434973,-500.0,0.00012363,2]
[408779706,1774241434983,-150.0,0.000124,2]
[408779707,1774241434992,-156.0,0.00012408,3]
[408779708,1774241435001,-151.0,0.00012408,2]
[408779709,1774241435010,-1000.0,0.00012408,2]
[408779710,1774241435019,-1000.0,0.00012408,2]
[408779711,1774241435029,-1000.0,0.00012408,2]
[408779712,1774241435038,-1000.0,0.00012408,2]
[408779713,1774241435048,-1000.0,0.00012408,2]
[408779714,1774241435057,-1000.0,0.00012408,2]
[408779715,1774241435066,-1000.0,0.00012408,2]
[408779716,1774241435075,-254.54034707,0.00012408,2]
[408779717,1774241435088,-745.45965293,0.00012408,2]
[408779718,1774241435098,-1000.0,0.00012408,2]
[408779719,1774241435107,-1000.0,0.00012408,2]
[408779720,1774241435116,-725.21790201,0.00012408,2]
[408779721,1774241435128,-274.78209799,0.00012408,2]
[408779722,1774241435137,-1000.0,0.00012408,2]
[408779723,1774241435146,-340.68015874,0.00012408,2]
[408779724,1774241435155,-200.0,0.00012408,2]
[408779725,1774241435164,-500.0,0.00012408,2]
[408779726,1774241435173,-588.72754446,0.00012418,2]
[408779727,1774241435183,-166.66,0.00012421,2]
[408779728,1774241435193,-840.0,0.0001243,5]
[408779729,1774241435203,-478.0,0.0001243,5]
[408779730,1774241435212,-821.96,0.00012447,2]
[408779731,1774241435222,-181.3773359,0.0001247,2]
[408779732,1774241435231,-151.0,0.0001247,2]
[408779733,1774241435240,-151.0,0.0001247,2]
[408779734,1774241435249,-1114.24,0.00012479,2]
[408779735,1774241435259,-501.94488973,0.00012521,2]
[408779736,1774241435268,-1000.0,0.00012521,2]
[408779737,1774241435277,-1000.0,0.00012521,2]
[408779738,1774241435287,-1000.0,0.00012521,2]
[408779739,1774241435298,-200.0,0.00012532,2]
[408779740,1774241435307,-166.66,0.00012627,2]
[408779741,1774241435317,-350.0,0.0001264,2]
[408779742,1774241435327,-200.0,0.00012657,2]
[408779743,1774241435336,-166.66,0.00012662,2]
[408779744,1774241435346,-192.37777759,0.00012713,2]
[408779745,1774241435358,-303.72702952,0.00012713,2]
[408779751,1774241437643,-10021.43863482,0.00012713,2]
[408779752,1774241437653,-821.96,0.00012721,2]
[408779753,1774241437664,-181.08010149,0.00012746,2]
[408779754,1774241437673,-159.11,0.00012767,2]
[408779755,1774241437682,-350.0,0.00012767,2]
[408779756,1774241437691,-200.0,0.00012784,2]
[408779757,1774241437700,-4703.61607574,0.00012893,2]
[408779758,1774241437711,-654.20392426,0.00012893,2]
[408779759,1774241437720,-150.99,0.00012893,2]
[408779760,1774241437729,-299.99,0.00012893,2]
[408779761,1774241437737,-15.24897701,0.00012893,2]
[408779762,1774241437748,-443.21634454,0.00012893,2]
[408779763,1774241437771,-653.07,0.00012893,2]
[408779858,1774241439836,-426.41467845,0.00012893,2]
[408779859,1774241439846,-999.99,0.00012893,2]
[408779860,1774241439856,-9999.99,0.00012893,2]
[408779861,1774241439869,-4469.33934019,0.00012893,2]
[408779862,1774241439884,-5530.65065981,0.00012893,2]
[408779863,1774241439894,-151.0,0.00012893,2]
[408779864,1774241439904,-200.0,0.00012912,2]
[408779865,1774241439915,-367.29641086,0.00012936,2]
[408779866,1774241439925,-356.41365572,0.00012979,2]
[408779867,1774241439935,-200.0,0.00012986,2]
[408779868,1774241439946,-821.96,0.00012995,2]
[408779869,1774241439955,-1093.9249713,0.00013,7]
[408779870,1774241439965,-250.0,0.00013,2]
[408779871,1774241439975,-166.66,0.00013006,2]
[408779872,1774241439984,-5383.07801527,0.0001305,2]
[408779873,1774241439994,-1007.59921263,0.00013068,2]
[408779874,1774241440003,-940.45917401,0.00013068,2]
[408779875,1774241440012,-500.0,0.00013068,2]
[408779876,1774241440021,-8966.9222889,0.00013169,2]
[408779877,1774241440033,-1550.62115303,0.00013169,2]
[408779878,1774241440043,-601.44014926,0.00013212,2]
[408779879,1774241440052,-822.01742713,0.00013269,2]
[408779880,1774241440061,-187.78006525,0.00013294,2]
[408779881,1774241440070,-588.02649814,0.00013312,2]
[408779882,1774241440158,-257.95834004,0.00011069,2]
[408779892,1774241444584,-678.36730996,0.00011069,2]
[408779893,1774241444599,-32.97350186,0.00013312,2]
[408779894,1774241444616,-579.85206138,0.00013312,2]
[408779895,1774241444634,-464.14793862,0.00013312,2]
[408779896,1774241444648,-550.94439853,0.00013312,2]
[408779897,1774241444665,-2964.05560147,0.00013312,2]
[408779898,1774241444681,-1345.0,0.00013312,2]
[408779899,1774241444695,-150.0,0.00013312,2]
[408779900,1774241444710,-1261.0,0.00013312,2]
[408779901,1774241444726,-1215.0,0.00013312,2]
[408779902,1774241444741,-924.0,0.00013312,2]
[408779903,1774241444755,-6008.0,0.00013312,2]
[408779904,1774241444771,-3761.0,0.00013312,2]
[408779905,1774241444785,-415.0,0.00013312,2]
[408779906,1774241444802,-166.66,0.00013385,2]
[408779907,1774241444817,-250.0,0.000134,5]
[408779908,1774241444833,-250.0,0.000134,5]
[408779909,1774241444848,-250.0,0.000134,5]
[408779910,1774241444865,-250.0,0.000134,5]
[408779911,1774241444884,-429.796552,0.00013424,2]
[408779912,1774241444900,-343.83724,0.00013424,2]
[408779913,1774241444918,-3240.0,0.00013425,2]
[408779914,1774241444934,-157.935863,0.00013425,2]
[408779915,1774241444950,-2351.0,0.00013461,2]
[408779916,1774241444967,-250.0,0.000135,4]
[408779917,1774241444982,-250.0,0.000135,4]
[408779918,1774241444998,-250.0,0.000135,4]
[408779919,1774241445015,-250.0,0.000135,4]
[408779920,1774241445031,-250.0,0.000135,5]
[408779921,1774241445046,-250.0,0.000135,5]
[408779922,1774241445062,-250.0,0.000135,5]
[408779923,1774241445078,-250.0,0.000135,5]
[408779924,1774241445093,-2000.0,0.00013529,2]
[408779925,1774241445109,-250.0,0.00013557,2]
[408779926,1774241445124,-159.11,0.00013565,2]
[408779927,1774241445140,-10517.54344193,0.00013624,2]
[408779928,1774241445155,-956.0,0.00013627,5]
[408779929,1774241445170,-150.0,0.00013663,2]
[408779930,1774241445185,-500.0,0.00013698,2]
[408779931,1774241445200,-515.02634622,0.00013698,2]
[408779932,1774241445214,-500.0,0.00013698,2]
[408779933,1774241445229,-500.0,0.00013698,2]
[408779934,1774241445243,-516.15405713,0.00013698,2]
[408779935,1774241445258,-500.0,0.00013698,2]
[408779936,1774241445273,-500.0,0.00013698,2]
[408779937,1774241445288,-486.3184443,0.00013698,2]
[408779938,1774241445302,-500.0,0.00013698,2]
[408779939,1774241445317,-500.0,0.00013698,2]
[408779940,1774241445332,-500.0,0.00013698,2]
[408779941,1774241445348,-500.0,0.00013698,2]
[408779942,1774241445363,-520.54835623,0.00013698,2]
[408779943,1774241445378,-500.0,0.00013698,2]
[408779944,1774241445393,-447.86798038,0.00013698,2]
[408779945,1774241445407,-506.06027284,0.00013698,2]
[408779946,1774241445422,-500.0,0.00013699,2]
[408779947,1774241445437,-780.0,0.00013699,2]
[408779950,1774241445451,-200.0,0.00013699,2]
[408779953,1774241445466,-527.71,0.00013699,2]
[408779954,1774241445481,-1176.97,0.00013699,2]
[408779955,1774241445495,-153.773105,0.00013699,2]
[408779956,1774241445510,-151.0,0.00013699,2]
[408779957,1774241445525,-151.0,0.00013699,2]
[408779958,1774241445541,-151.0,0.00013699,2]
[408779959,1774241445557,-151.0,0.00013699,2]
[408779960,1774241445573,-151.0,0.00013699,2]
[408779961,1774241445590,-151.0,0.00013699,2]
[408779962,1774241445605,-151.0,0.00013699,2]
[408779963,1774241445620,-151.0,0.00013699,2]
[408779964,1774241445635,-151.0,0.00013699,2]
[408779965,1774241445650,-151.0,0.00013699,2]
[408779966,1774241445666,-151.0,0.00013699,2]
[408779967,1774241445681,-151.0,0.00013699,2]
[408779968,1774241445696,-285.204736,0.00013699,2]
[408779969,1774241445711,-152.6805,0.000137,2]
[408779970,1774241445726,-152.0,0.00013742,3]
[408779971,1774241445742,-156.0,0.00013778,3]
[408779972,1774241445757,-502.93024548,0.0001379,2]
[408779973,1774241445772,-507.74865056,0.0001379,2]
[408779974,1774241445787,-200.0,0.000138,7]
[408779975,1774241445801,-200.0,0.000138,7]
[408779976,1774241445816,-277.84,0.000138,7]
[408779977,1774241445831,-500.0,0.00013811,2]
[408779978,1774241445846,-289.56002788,0.00013833,2]
[408779979,1774241445860,-194.72792766,0.00013842,2]
[408779980,1774241445878,-150.0,0.00013859,2]
[408779981,1774241445892,-150.0,0.00013859,2]
[408779982,1774241445908,-150.0,0.00013859,2]
[408779983,1774241445924,-150.0,0.00013859,2]
[408779984,1774241445939,-1114.24,0.00013865,2]
[408779985,1774241445955,-686.948868,0.00013868,2]
[408779986,1774241445969,-3078.6912339,0.00013871,2]
[408779987,1774241445983,-152.0,0.00013892,4]
[408779989,1774241445998,-151.0,0.00013922,2]
[408779990,1774241446013,-151.0,0.00013922,2]
[408779991,1774241446028,-151.0,0.00013922,2]
[408779992,1774241446043,-979.16666667,0.00013923,2]
[408779995,1774241446058,-160.0,0.00013923,2]
[408779996,1774241446073,-355.59971072,0.00013927,2]
[408779997,1774241446087,-788.0,0.00013957,2]
[408779998,1774241446102,-233.43561001,0.00013967,2]
[408779999,1774241446116,-501.0,0.00014,2]
[408780000,1774241446130,-152.0,0.00014043,5]
[408780001,1774241446144,-6495.85146769,0.00014079,2]
[408780003,1774241446198,-2787.08561276,0.00014079,2]
[408780004,1774241446388,-1234.60636148,0.00014079,2]
[408780005,1774241446403,-687.87150046,0.00014082,2]
[408780006,1774241446422,-2212.12849954,0.00014082,2]
[408780007,1774241446437,-1400.0,0.00014082,2]
[408780008,1774241446452,-788.0,0.00014096,2]
[408780009,1774241446467,-788.0,0.00014105,2]
[408780010,1774241446481,-788.0,0.00014109,2]
[408780011,1774241446495,-788.0,0.00014158,2]
[408780012,1774241446510,-788.0,0.00014171,2]
[408780013,1774241446524,-788.0,0.00014182,2]
[408780014,1774241446539,-152.0,0.00014193,6]
[408780015,1774241446553,-554.07197852,0.00014196,2]
[408780016,1774241447190,-150.0,0.000135,2]
[408780017,1774241447204,-233.92802148,0.00014196,2]
[408780018,1774241447216,-788.0,0.00014198,2]
[408780019,1774241447229,-998.0,0.000142,2]
[408780020,1774241447242,-583.0,0.000142,2]
[408780021,1774241447254,-113.58779677,0.00014216,2]
[408780022,1774241447270,-39.69121413,0.00014216,2]
[408780023,1774241447283,-152.1369768,0.00014216,2]
[408780024,1774241447295,-686.948868,0.00014219,2]
[408780025,1774241447307,-788.0,0.00014296,2]
[408780026,1774241447319,-788.0,0.00014298,2]
[408780027,1774241447332,-788.0,0.00014314,2]
[408780028,1774241447344,-152.0,0.00014343,7]
[408780029,1774241447357,-1400.0,0.00014356,2]
[408780030,1774241448167,-150.09201891,0.00014359,2]
[408780031,1774241448211,-159.11,0.00014363,2]
[408780032,1774241448245,-788.0,0.00014372,2]
[408780033,1774241448268,-527.71,0.00014384,2]
[408780034,1774241448280,-1812.79803546,0.00014387,2]
[408780035,1774241448298,-503.58029,0.00014387,2]
[408780073,1774242631746,-302.73019387,0.000109,2]
[408780074,1774242631756,-166.66,0.00010959,2]
[408780075,1774242631770,-166.66,0.0001111,2]
[408780076,1774242631780,-200.0,0.00011154,2]
[408780077,1774242631790,-150.0,0.00011154,2]
[408780078,1774242631800,-368.5705041,0.00011154,2]
[408780079,1774242631812,-131.4294959,0.00011154,2]
[408780080,1774242631823,-166.66,0.0001126,2]
[408780081,1774242631833,-166.66,0.00011411,2]
[408780082,1774242631842,-257.95834,0.00011503,2]
[408780083,1774242631851,-166.66,0.00011561,2]
[408780084,1774242631861,-166.66,0.00011712,2]
[408780085,1774242631870,-150.0,0.000118,2]
[408780086,1774242631879,-150.0,0.00011805,2]
[408780087,1774242631889,-1200.0,0.00011805,2]
[408780088,1774242631899,-29999.99,0.00011806,2]
[408780089,1774242631908,-1723.12,0.00011806,2]
[408780090,1774242631917,-1000.0,0.00011806,2]
[408780091,1774242631926,-194.69059823,0.00012055,2]
[408780092,1774242631936,-2853.67,0.00012083,2]
[408780093,1774242631944,-1000.0,0.00012086,2]
[408780094,1774242631954,-150.99,0.00012087,2]
[408780120,1774242632562,-9999.99,0.00012087,2]
[408780121,1774242632573,-500.0,0.00012219,2]
[408780122,1774242632583,-232.36970875,0.00012267,2]
[408780123,1774242632594,-500.0,0.00012275,2]
[408780124,1774242632604,-500.0,0.00012275,2]
[408780125,1774242632613,-500.0,0.00012275,2]
[408780126,1774242632624,-500.0,0.00012275,2]
[408780127,1774242632634,-347.16645487,0.00012275,2]
[408780128,1774242632645,-500.0,0.00012275,2]
[408780129,1774242632655,-500.0,0.00012275,2]
[408780130,1774242632664,-500.0,0.00012275,2]
[408780131,1774242632678,-500.41700518,0.00012275,2]
[408780132,1774242632688,-200.0,0.00012296,2]
[408780133,1774242632698,-151.0,0.00012296,2]
[408780134,1774242632708,-294.6689732,0.00012296,2]
[408780135,1774242632718,-2992.79711629,0.00012304,2]
[408780136,1774242632728,-500.0,0.00012367,2]
[408780137,1774242632738,-578.20924308,0.00012367,2]
[408780138,1774242632748,-670.58624095,0.00012367,2]
[408780139,1774242632758,-500.0,0.00012367,2]
[408780140,1774242632767,-151.0,0.00012367,2]
[408780141,1774242632779,-500.0,0.00012367,2]
[408780142,1774242632790,-500.0,0.00012367,2]
[408780143,1774242632800,-500.0,0.00012367,2]
[408780144,1774242632812,-500.0,0.00012367,2]
[408780145,1774242632821,-819.16371102,0.00012367,2]
[408780146,1774242632832,-500.0,0.00012367,2]
[408780147,1774242632843,-500.0,0.00012367,2]
[408780148,1774242632852,-500.0,0.00012367,2]
[408780149,1774242632863,-351.26255365,0.00012367,2]
[408780150,1774242632873,-500.0,0.00012367,2]
[408780151,1774242632883,-500.0,0.00012367,2]
[408780152,1774242632892,-174.61919141,0.00012367,2]
[408780153,1774242632902,-500.0,0.00012367,2]
[408780154,1774242632912,-500.0,0.00012367,2]
[408780155,1774242632922,-500.0,0.00012367,2]
[408780156,1774242632932,-500.0,0.00012367,2]
[408780157,1774242632943,-500.0,0.00012367,2]
[408780158,1774242632952,-500.0,0.00012367,2]
[408780159,1774242632963,-500.0,0.00012367,2]
[408780160,1774242632972,-2312.15,0.00012368,2]
[408780161,1774242632981,-500.0,0.00012422,2]
[408780162,1774242632990,-151.0,0.00012422,2]
[408780163,1774242632999,-500.0,0.00012477,2]
[408780164,1774242633009,-151.0,0.00012477,2]
[408780165,1774242633018,-500.0,0.00012641,2]
[408780166,1774242633030,-1000.0,0.00012823,2]
[408780167,1774242633039,-500.0,0.00012823,2]
[408780168,1774242633049,-1000.0,0.00012823,2]
[408780169,1774242633059,-500.0,0.00012823,2]
[408780170,1774242633072,-502.65143522,0.00012823,2]
[408780171,1774242633082,-1000.0,0.00012823,2]
[408780172,1774242633092,-502.81680316,0.00012823,2]
[408780173,1774242633101,-255.0,0.00012879,2]
[408780174,1774242633111,-153.43,0.000129,2]
[408780175,1774242633122,-111.05909702,0.00012915,2]
[408780176,1774242633135,-70.02100447,0.00012915,2]
[408780177,1774242633144,-1680.0,0.00012986,2]
[408780178,1774242633154,-151.8153,0.000131,2]
[408780179,1774242633163,-1500.0,0.00013371,2]
[408780180,1774242633174,-556.21049743,0.00013371,2]
[408780181,1774242633184,-500.0,0.00013371,2]
[408780182,1774242633193,-187.78006525,0.00013463,2]
[408780183,1774242633203,-150.0,0.0001351,2]
[408780184,1774242633212,-1345.0,0.0001351,2]
[408780185,1774242633221,-621.0,0.0001351,2]
[408780186,1774242633231,-3515.0,0.0001351,2]
[408780187,1774242633244,-1044.0,0.0001351,2]
[408780188,1774242633253,-1261.0,0.0001351,2]
[408780189,1774242633263,-1215.0,0.0001351,2]
[408780190,1774242633273,-924.0,0.0001351,2]
[408780191,1774242633282,-5756.08677416,0.0001351,2]
[408780192,1774242633294,-251.91322584,0.0001351,2]
[408780193,1774242633304,-415.0,0.0001351,2]
[408780194,1774242633315,-155.0,0.000136,2]
[408780195,1774242633325,-155.0,0.000136,2]
[408780196,1774242633334,-200.0,0.00013699,2]
[408780197,1774242633343,-1800.0,0.000137,5]
[408780198,1774242633353,-10722.50574351,0.000137,2]
[408780199,1774242633364,-650.1377,0.0001371,2]
[408780200,1774242633374,-1976.7385,0.0001371,2]
[408780201,1774242633383,-152.0,0.0001376,3]
[408780202,1774242633394,-3600.0,0.000138,5]
[408780203,1774242633404,-979.16666667,0.0001381,2]
[408780204,1774242633413,-160.0,0.0001381,2]
[408780205,1774242633423,-2500.0,0.00013899,2]
[408780206,1774242633432,-6137.37523518,0.000139,2]
[408780207,1774242633442,-7018.05668831,0.000139,2]
[408780208,1774242633451,-155.0,0.000139,2]
[408780209,1774242633460,-155.0,0.000139,2]
[408780210,1774242633470,-998.0,0.000139,2]
[408780211,1774242633480,-5400.0,0.000139,5]
[408780212,1774242633491,-583.0,0.000139,2]
[408780213,1774242633502,-960.0754558,0.00013919,2]
[408780214,1774242633512,-152.0,0.00013929,4]
[408780215,1774242633522,-289.02257965,0.00013998,2]
[408780216,1774242633532,-500.0,0.00013998,2]
[408780217,1774242633542,-500.0,0.00013998,2]
[408780218,1774242633553,-500.0,0.00013998,2]
[408780219,1774242633563,-228.80522228,0.00013998,2]
[408780220,1774242633574,-249.157571,0.00013999,2]
[408780221,1774242633585,-151.0,0.00013999,2]
[408780222,1774242633595,-45112.76034148,0.00013999,2]
[408780223,1774242633608,-672.09,0.00013999,2]
[408780224,1774242633623,-1526.40458596,0.00013999,2]
[408780225,1774242633657,-555.92102686,0.00013999,2]
[408780226,1774242633669,-762.29527772,0.00013999,2]
[408780227,1774242633681,-31246.26914482,0.00013999,2]
[408780228,1774242633693,-55891.79028902,0.00013999,2]
[408780229,1774242633705,-6739.75353032,0.00013999,2]
[408780230,1774242633728,-1600.0,0.00013999,2]
[408780231,1774242633740,-833.85573829,0.00013999,2]
[408780232,1774242633751,-2584.1379276,0.00013999,2]
[408780233,1774242633762,-11678.98913218,0.00013999,2]
[408780234,1774242633787,-953.94191315,0.00013999,2]
[408780237,1774242637973,-13992.98583388,0.00013999,2]
[408780238,1774242638054,-291.95211989,0.00013999,2]
[408780239,1774242638065,-10809.48272877,0.00013999,2]
[408780249,1774242639982,-2129.56782122,0.0001351,2]
[408780250,1774242640200,-347.58817878,0.0001351,2]
[408780251,1774242640212,-1006.92238902,0.00013719,2]
[408780252,1774242640223,-185982.92985788,0.00013999,2]
[408780253,1774242642007,-302.63622528,0.00013999,2]
[408780254,1774242642018,-265.7436383,0.00013999,2]
[408780261,1774242644905,-492.31440973,0.00013719,2]
[408780264,1774242645778,-605.85731364,0.00013719,2]
[408780265,1774242645788,-211.19268636,0.00013719,2]
[408780266,1774242645800,-915.74536103,0.00013719,2]
[408780267,1774242645810,-679.13306542,0.00013999,2]
[408780268,1774242645822,-8464.71852318,0.00013999,2]
[408780269,1774242645835,-501.0,0.00014,2]
[408780270,1774242645845,-194.72792766,0.00014011,2]
[408780271,1774242645856,-433.0,0.00014048,2]
[408780272,1774242645866,-1300.0,0.00014082,2]
[408780273,1774242645876,-2600.0,0.00014082,2]
[408780274,1774242645886,-152.0,0.00014097,5]
[408780275,1774242645897,-1116.65294621,0.00014099,2]
[408780276,1774242645907,-1108.24268564,0.00014099,2]
[408780277,1774242645916,-1026.89069764,0.00014099,2]
[408780278,1774242645925,-1035.00542869,0.00014099,2]
[408780279,1774242645936,-1071.06029575,0.00014099,2]
[408780280,1774242645945,-1056.2948733,0.00014099,2]
[408780281,1774242645955,-1022.35422453,0.00014099,2]
[408780282,1774242645965,-1048.20967526,0.00014099,2]
[408780283,1774242645974,-997.5933331,0.00014099,2]
[408780284,1774242645984,-9149.77753785,0.0001411,2]
[408780285,1774242645996,-13056.5879772,0.00014111,2]
[408780286,1774242646006,-7018.05668824,0.00014122,2]
[408780287,1774242646016,-429.79655,0.00014197,7]
[408780288,1774242646025,-369.803707,0.00014197,7]
[408780289,1774242646035,-386.42,0.00014256,2]
[408780290,1774242646045,-152.0,0.00014266,6]
[408780291,1774242646055,-200.0,0.00014272,2]
[408780292,1774242646065,-2351.0,0.00014284,2]
[408780293,1774242646076,-153.0,0.000143,2]
[408780294,1774242646087,-153.0,0.000143,2]
[408780295,1774242646097,-155.0,0.000143,2]
[408780296,1774242646106,-333.724381,0.00014308,7]
[408780297,1774242646115,-426.86,0.00014311,2]
[408780298,1774242646124,-7018.05668824,0.00014344,2]
[408780299,1774242646134,-1300.0,0.00014356,2]
[408780300,1774242646143,-9684.47177117,0.00014372,2]
[408780301,1774242646152,-200.0,0.00014384,2]
[408780302,1774242646161,-156.0,0.00014387,3]
[408780303,1774242646171,-200.0,0.00014387,2]
[408780304,1774242646180,-200.0,0.00014387,2]
[408780305,1774242646189,-1430.70972,0.00014387,2]
[408780307,1774242646199,-200.0,0.00014387,2]
[408780308,1774242646208,-2364.62167454,0.00014387,2]
[408780309,1774242646219,-788.0,0.00014388,2]
[408780310,1774242646230,-1568.0,0.000144,2]
[408780311,1774242646240,-1568.0,0.000144,2]
[408780312,1774242646250,-153.6526,0.000144,2]
[408780313,1774242646262,-152.0,0.00014435,7]
[408780314,1774242646272,-2261.0,0.00014436,2]
[408780315,1774242646283,-167.99,0.00014453,2]
[408780316,1774242646293,-2261.0,0.00014453,2]
[408780318,1774242646303,-788.0,0.0001446,2]
[408780320,1774242646312,-338.55558943,0.00014473,2]
[408780322,1774242646321,-173.13019172,0.00014477,2]
[408780324,1774242646332,-329.2571384,0.0001448,2]
[408780326,1774242646341,-498.10906456,0.00014486,2]
[408780327,1774242646350,-500.0,0.00014486,2]
[408780329,1774242646360,-500.0,0.00014486,2]
[408780331,1774242646370,-500.0,0.00014486,2]
[408780333,1774242646379,-500.0,0.00014486,2]
[408780335,1774242646389,-500.0,0.00014486,2]
[408780337,1774242646399,-281.72424335,0.00014486,2]
[408780339,1774242646409,-286.221108,0.00014486,2]
[408780341,1774242646418,-500.0,0.00014486,2]
[408780343,1774242646427,-383.73118766,0.00014486,2]
[408780345,1774242646438,-500.0,0.00014486,2]
[408780347,1774242646447,-500.0,0.00014486,2]
[408780349,1774242646457,-190.99531225,0.00014486,2]
[408780351,1774242646466,-500.0,0.00014486,2]
[408780353,1774242646476,-500.0,0.00014486,2]
[408780355,1774242646485,-500.0,0.00014486,2]
[408780357,1774242646494,-500.0,0.00014486,2]
[408780359,1774242646502,-500.0,0.00014486,2]
[408780360,1774242646512,-500.0,0.00014486,2]
[408780362,1774242646520,-250.0,0.00014486,2]
[408780364,1774242646530,-152.0,0.00014487,5]
[408780366,1774242646539,-175066.91568572,0.00014487,2]
[408780373,1774242646601,-4445.91469702,0.00014487,2]
[408780378,1774242646632,-1065.32192759,0.00014487,2]
[408780380,1774242646644,-2866.11728488,0.00014487,2]
[408780382,1774242646655,-283.32,0.00014487,2]
[408780413,1774243832001,-152.35935027,0.00011496,2]
[408780414,1774243832011,-1200.0,0.00011505,2]
[408780415,1774243832020,-150.0,0.00011505,2]
[408780416,1774243832030,-16279.84458002,0.00011506,2]
[408780417,1774243832044,-117434.93639211,0.00011506,2]